Cogmind - Beta 16 @@@ ROGUE MODE // 2026.01.10 @ 22:47:14 Player: k1ll3rb0t Result: Destroyed by M Guard with Advanced Micro-nuke Launcher Performance ------------- Evolutions (9) 4500 Regions Visited (26) 5200 Robots Destroyed (408) 2040 Value Destroyed (20160) 20160 Prototype IDs (66) 1320 Alien Tech Used (0) 0 Bonus (23201) 23201 TOTAL SCORE: 56421 Bonus ------- High Alert Combat Kills 4832 Follower Combat Kills 1825 Entered Garrisons 200 Network Hubs Disabled 800 Met Data Miner 300 Acquired ECA 300 Met Warlord at Base 500 MAIN.C Attacked Warlord 500 Warlord Defense Kills 1762 Built Enhanced Grunts 300 Met R17 at Cetus 500 Met R17 at Research 2000 Met Warlord at Research 2000 Invited to Help at Command 2000 Scanned by Researcher 500 Met MAIN.C 5000 Friendly Fire -118 Cogmind --------- Core Integrity 0/1600 Matter 265/300 Energy 85/100 System Corruption 12% Temperature Cool (0) Movement Core (50) Location -1/Command Parts ------- > --- POWER (2) -------- (None) > --- PROPULSION (8) --- (None) > --- UTILITY (12) ----- (None) > --- WEAPON (3) ------- (None) > --- INVENTORY (5) ---- Improved Matter Compressor (300) Improved Phase Shifter Enhanced Hardcell Cannon Power Maul Peak State ------------ > --- POWER ------------ Light Quantum Reactor Light Quantum Reactor > --- PROPULSION ------- Improved Antigrav System Combat Antigrav System Antigrav Array Antigrav Array Experimental Gyrokinetic Inverter Experimental Gyrokinetic Inverter > --- UTILITY ---------- Advanced Cryofiber Web High-capacity Storage Unit Advanced Energy Well Experimental Optical Array Advanced Signal Interpreter Experimental Core Analyzer Matter Filter Improved Phase Shifter Advanced Powered Armor Advanced Powered Armor Graphene Brace Advanced Hacking Suite > --- WEAPON ----------- Enhanced Quantum Rifle Enhanced Quantum Rifle Enhanced Quantum Rifle > --- INVENTORY -------- Improved Ion Engine Fusion Compressor Improved Antigrav System Antigrav Array Improved Energy Well Improved Matter Compressor Advanced Sensor Array Advanced Powered Armor Advanced Powered Armor Advanced Force Field High-powered Tractor Beam Advanced Recalibrator HERF Cannon Railgun Enhanced Hardcell Cannon Gamma Bomb Array Hellfire Missile Launcher Improved Remote Datajack [Rating: 204] Favorites ----------- Power Quantum Reactor Engine Light Angular Momentum Engine Power Core Enhanced Fission Core Reactor Quantum Reactor Propulsion Improved Medium Treads Treads Improved Medium Treads Leg Flexi-carbon Leg Wheel Compact Wheel Hover Unit Combat Antigrav System Flight Unit Experimental Q-thruster Utility Huge Storage Unit Device Advanced Cooling System Storage Huge Storage Unit Processor Improved Targeting Computer Hackware Improved Hacking Suite Protection Improved Heavy Armor Plating Weapon Gatling Laser Energy Gun Gatling Laser Energy Cannon Nova Cannon Ballistic Gun Advanced KE Penetrator Ballistic Cannon Linear Accelerator Launcher Grenade Launcher Special Weapon CPS Tube Impact Weapon Power Maul Slashing Weapon Phasing Sabre Piercing Weapon Vortex Lance Build | -11 -10 -10 -8 -8 -6 -6 -6 -6 -5 -5 -5 -5 -5 -5 -5 -5 -4 -4 -4 -4 -3 -3 -3 -2 -1 -1 ------- Run | Yrd Mat Sub Rec Scr Fac Low Low Dat Pro Fac Gar Fac Ext Cet Arc Hub Fac Upp Upp War Pro Res Tes Res Acc Com Slots Evolved 18 | . . . . . 8 . . . . 2 . . . . . . 2 . . . . 2 . 2 2 . Power 1 | . . . . . . . . . . . . . . . . . 1 . . . . . . . . . Propulsion 6 | . . . . . 3 . . . . 1 . . . . . . . . . . . . . 2 . . Utility 10 | . . . . . 4 . . . . 1 . . . . . . 1 . . . . 2 . . 2 . Weapon 1 | . . . . . 1 . . . . . . . . . . . . . . . . . . . . . Parts Attached 354 | 9 2 3 10 5 39 3 . . . 36 27 4 6 10 9 7 16 4 5 15 2 14 20 42 14 52 Power 37 | 1 . 1 1 1 1 1 . . . 3 1 . . 1 . . 4 . . 1 . . 6 4 3 8 Engine 9 | 1 . 1 1 1 1 1 . . . . . . . . . . . . . . . . . . 1 2 Core 7 | . . . . . . . . . . 3 1 . . . . . 1 . . . . . . . 1 1 Reactor 21 | . . . . . . . . . . . . . . 1 . . 3 . . 1 . . 6 4 1 5 Propulsion 73 | 4 . . 1 1 11 1 . . . 9 7 . 2 2 1 . 2 3 . . 1 . 4 15 . 9 Treads 40 | 2 . . . 1 8 1 . . . 7 5 . 2 2 1 . 2 3 . . 1 . 3 2 . . Leg 3 | 2 . . . . . . . . . . . . . . . . . . . . . . 1 . . . Wheel 8 | . . . 1 . 3 . . . . 2 2 . . . . . . . . . . . . . . . Hover 18 | . . . . . . . . . . . . . . . . . . . . . . . . 9 . 9 Flight 4 | . . . . . . . . . . . . . . . . . . . . . . . . 4 . . Utility 153 | 2 1 1 5 . 11 1 . . . 17 10 4 2 2 7 4 7 1 5 10 . 6 6 20 9 22 Device 76 | 1 . . 2 . 6 1 . . . 7 7 3 1 . 4 3 4 . 5 5 . 4 2 6 6 9 Storage 12 | 1 1 . 2 . . . . . . 2 . . . . . 1 . . . . . 1 . 1 . 3 Processor 26 | . . . . . 1 . . . . 2 1 . 1 . . . 2 . . 3 . 1 1 7 2 5 Hackware 10 | . . . . . 1 . . . . 1 . . . . 3 . . . . 1 . . . 3 1 . Protection 29 | . . 1 1 . 3 . . . . 5 2 1 . 2 . . 1 1 . 1 . . 3 3 . 5 Artifact . | . . . . . . . . . . . . . . . . . . . . . . . . . . . Weapon 91 | 2 1 1 3 3 16 . . . . 7 9 . 2 5 1 3 3 . . 4 1 8 4 3 2 13 Energy Gun 21 | . . . . . 4 . . . . 1 4 . . 1 . 1 . . . . . . 1 . . 9 Energy Cannon 23 | . . . 2 1 3 . . . . 4 1 . . . . 1 1 . . 2 . 4 1 1 1 1 Ballistic Gun 23 | 2 . . 1 1 5 . . . . . 2 . . 3 1 . 2 . . 1 1 1 2 . 1 . Ballistic Cannon 3 | . . . . . . . . . . . . . 1 . . . . . . . . . . 1 . 1 Launcher 7 | . . 1 . . 2 . . . . . . . . . . . . . . . . 3 . . . 1 Special Weapon 6 | . 1 . . 1 1 . . . . 1 1 . . 1 . . . . . . . . . . . . Impact Weapon 4 | . . . . . 1 . . . . 1 . . . . . 1 . . . . . . . . . 1 Slashing Weapon 3 | . . . . . . . . . . . 1 . 1 . . . . . . . . . . 1 . . Piercing Weapon 1 | . . . . . . . . . . . . . . . . . . . . 1 . . . . . . Special Melee Weapon . | . . . . . . . . . . . . . . . . . . . . . . . . . . . Unidentified Prototypes 44 | . . . . . 2 . . . . 5 1 . . 4 . 5 2 . . 10 1 5 4 5 . . Corrupted Parts 5 | . . . . . . . . . . . . . . . 1 . . . . . . . 3 1 . . System Corruption 13 | . . . . . . . . . . . . . . . 3 . . . . . . . 5 5 . . Parts Lost 162 | . . 1 3 . 7 2 . . . 18 9 1 . . . . 10 . . 3 . 1 24 20 8 55 Power 26 | . . . 1 . 1 . . . . 1 . . . . . . 3 . . . . . 5 4 1 10 Propulsion 44 | . . . 1 . 3 1 . . . 9 2 . . . . . . . . 1 . . 6 5 1 15 Utility 62 | . . 1 . . 3 1 . . . 6 4 1 . . . . 5 . . 2 . 1 10 6 4 18 Weapon 30 | . . . 1 . . . . . . 2 3 . . . . . 2 . . . . . 3 5 2 12 Highest Loss Streak 15 | . . 1 3 . 3 2 . . . 3 5 1 . . . . 6 . . 3 . 1 11 5 6 15 To Critical Strikes 2 | . . . . . . . . . . . . . . . . . . . . 1 . . 1 . . . Average Backups 19 | 4 8 5 14 23 21 20 21 21 20 21 23 21 22 21 21 21 20 20 20 20 20 22 18 13 15 12 Power 1 | . 1 . . . . 1 1 1 1 1 1 1 1 . 1 1 . . 1 . 1 1 2 . . . Propulsion 2 | 3 4 1 4 5 3 2 2 2 2 1 1 3 2 2 2 3 2 3 3 2 2 3 3 . 3 1 Utility 8 | . . 1 7 7 5 7 8 8 7 9 12 10 11 10 10 11 10 10 10 10 9 9 8 7 9 5 Weapon 5 | . 2 1 2 6 6 7 7 7 7 7 7 6 6 8 7 6 6 5 6 5 8 6 5 4 3 4 Tool/Special . | . . . . . . . . . . . . . . . . . . . . . . . . . . . Unused Backups 72 | . 1 4 . 3 8 1 1 . 2 6 11 1 . 4 . 1 5 2 1 5 . 3 1 4 3 5 Power 11 | . . . . . 1 1 . . . . 1 . . 1 . . 2 . . 1 . 1 1 1 . 1 Propulsion 8 | . 1 2 . 1 1 . . . . . . . . 1 . . . . . . . 2 . . . . Utility 36 | . . 1 . 1 2 . 1 . 2 5 7 . . 2 . 1 3 2 . 2 . . . 2 3 2 Weapon 14 | . . 1 . 1 3 . . . . 1 3 1 . . . . . . . 2 . . . 1 . 1 Tool/Special 3 | . . . . . 1 . . . . . . . . . . . . . 1 . . . . . . 1 Average Slot Usage (%) 82 | . 100 86 91 89 95 91 93 74 93 84 88 88 78 71 73 75 81 81 77 74 73 71 76 53 90 78 Engine 3 | . 14 14 14 14 5 6 6 6 6 . . . . . . . . . . . . . . . 2 . Core 1 | . . . . . . . . . . 5 5 5 5 . . . . 5 5 1 . . . . 1 1 Reactor 2 | . . . . . . . . . . . . . . 4 5 5 9 5 5 5 5 4 8 4 3 4 Treads 18 | . 5 28 24 14 26 33 33 33 33 26 26 29 19 17 16 17 14 15 15 15 15 14 14 2 . . Wheel 1 | . . . 3 14 5 . . . . 1 2 . . . . . . . . . . . . . . . Hover 1 | . . . . . . . . . . . . . . . . . . . . . . . . 8 26 21 Device 9 | . 14 1 6 . 15 11 13 13 13 8 10 13 11 5 7 1 12 12 11 10 5 10 16 7 17 14 Storage 6 | . 14 2 13 14 6 6 6 6 6 5 5 5 5 5 5 5 5 5 5 5 5 4 4 3 4 6 Processor 7 | . . . . . 3 6 6 6 6 10 10 8 11 9 5 5 6 10 10 10 15 13 8 8 9 13 Hackware 2 | . . . . . . . . . . . . . . . 1 11 7 5 3 3 5 4 4 4 12 7 Protection 6 | . . 11 1 14 7 6 6 6 6 6 5 4 5 12 10 9 7 5 5 5 5 4 3 . 2 1 Energy Gun 4 | . . . . . 5 12 12 1 19 8 12 13 16 2 . . . . . . . . 2 1 . 4 Energy Cannon 3 | . . . 7 13 6 . 6 . . 3 2 . . . . . 2 . . 1 . 10 8 2 . . Ballistic Gun 6 | . 22 16 13 . 4 6 . . . . . . . 9 17 15 10 15 15 13 15 2 . . 2 . Peak Build Rating 204 | 7 7 10 19 25 69 71 71 70 70 94 98 99 102 135 133 132 157 139 137 158 160 175 181 187 194 204 Average Rating 96 | 4 7 9 12 21 53 69 70 58 69 81 84 94 100 118 128 129 144 135 131 142 156 164 161 99 181 159 On Entrance 92 | . 7 7 10 14 25 67 71 70 70 70 84 95 97 102 135 128 132 123 130 135 158 154 172 105 160 166 Avg Prop Armor Cover (%) 10 | . . . 11 9 13 . . . . 14 11 . . . . 8 . . . . . . 4 10 . 11 Naked Turns 5 | . . . . . . . . . . . . . . . . . . . . . . . . 2 . 3 Heaviest Build 189 | 11 26 29 104 107 130 131 130 128 128 143 134 145 150 169 170 160 181 159 167 174 168 189 187 153 112 135 Greatest Support 235 | 40 40 40 40 16 140 140 140 140 140 178 192 192 220 235 235 235 235 230 230 230 230 220 225 118 122 109 Greatest Overweight (x) 19 | . 1 . 6 6 12 . . . . 7 4 . . . . 1 . . . . 1 . 1 19 . 1 Average Overweight (x) . | . . . 1 5 2 . . . . . . . . . . . . . . . . . . . . . Largest Inventory Capacity 25 | 8 15 15 25 25 25 25 25 25 25 25 25 25 25 25 25 25 25 25 25 25 25 25 25 25 20 20 Average Capacity 23 | 7 12 6 20 25 25 25 25 25 25 25 25 25 25 25 25 25 25 25 25 25 25 25 25 21 20 15 Most Carried 25 | 8 9 13 25 25 25 25 25 25 25 25 25 25 25 25 25 25 25 25 25 25 25 25 25 20 20 20 Average Carried 22 | 4 8 6 16 24 23 24 24 25 24 24 24 24 24 24 24 24 24 24 24 24 24 24 21 15 19 13 Final Capacity 25 | 8 15 5 25 25 25 25 25 25 25 25 25 25 25 25 25 25 25 25 25 25 25 25 25 20 20 5 Final Carried 25 | 8 9 5 24 25 25 25 25 25 25 25 25 25 25 25 25 25 24 25 25 25 25 25 16 20 20 4 Class Distribution -------------------- 29% | Scavenger-Tank 23% | Mutant 12% | Tank 12% | Scavenger-Mutant 8% | Scavenger-Gunner 4% | Hacker-Tank 3% | Hacker-Mutant 3% | Commander-Tank Dominant Class ---------------- Mutant | -10/Materials Mutant | -10/Subcaves Mutant | -8/Recycling Mutant | -8/Scraptown Scavenger-Tank | -6/Factory Tank | -6/Lower Caves Tank | -6/Lower Caves Mutant | -6/Data Miner Tank | -5/Proximity Caves Mutant | -5/Factory Scavenger-Tank | -5/Garrison Scavenger-Mutant | -5/Factory Scavenger-Tank | -5/Extension Commander-Tank | -5/Cetus Scavenger-Tank | -5/Archives Scavenger-Tank | -5/Hub_04(d) Scavenger-Tank | -4/Factory Scavenger-Tank | -4/Upper Caves Scavenger-Gunner | -4/Upper Caves Scavenger-Tank | -4/Warlord Scavenger-Tank | -3/Proximity Caves Scavenger-Gunner | -3/Research Hacker-Tank | -3/Testing Hacker-Mutant | -2/Research Scavenger-Mutant | -1/Access Scavenger-Mutant | -1/Command Resources | -11 -10 -10 -8 -8 -6 -6 -6 -6 -5 -5 -5 -5 -5 -5 -5 -5 -4 -4 -4 -4 -3 -3 -3 -2 -1 -1 ----------- Run | Yrd Mat Sub Rec Scr Fac Low Low Dat Pro Fac Gar Fac Ext Cet Arc Hub Fac Upp Upp War Pro Res Tes Res Acc Com Matter Collected 14291 | 236 24 245 418 30 743 286 114 . 55 1284 659 416 275 208 389 541 1709 415 271 637 277 466 1278 1382 631 1302 Remotely 2871 | . . . . . . . . . . 400 . 306 107 . . . 617 97 . 282 . 200 862 . . . Salvage Created 20703 | 68 24 82 629 . 1273 300 278 . 187 2647 1781 639 693 231 160 1312 2862 436 123 556 260 636 3384 402 544 1196 Parts 884 | 8 3 3 20 . 50 8 5 . 6 83 81 26 20 11 16 57 163 27 7 36 9 23 136 18 24 44 Haulers Intercepted 22 | . . . . . 1 . . . . 5 . 1 1 . . 6 3 . . . . 2 . 1 2 . Recyclers Shooed 10 | . . . . . 2 . . . . 2 . 1 . . . . 2 . . . . . . . 2 1 Parts Field Recycled . | . . . . . . . . . . . . . . . . . . . . . . . . . . . Retrieved Matter . | . . . . . . . . . . . . . . . . . . . . . . . . . . . Parts Self-Destructed 76 | . . 14 . . . 12 3 . 6 . . . . . . . . 25 7 . 9 . . . . . Prevented . | . . . . . . . . . . . . . . . . . . . . . . . . . . . Parts Restored . | . . . . . . . . . . . . . . . . . . . . . . . . . . . Kills | -11 -10 -10 -8 -8 -6 -6 -6 -6 -5 -5 -5 -5 -5 -5 -5 -5 -4 -4 -4 -4 -3 -3 -3 -2 -1 -1 ------- Run | Yrd Mat Sub Rec Scr Fac Low Low Dat Pro Fac Gar Fac Ext Cet Arc Hub Fac Upp Upp War Pro Res Tes Res Acc Com Combat Hostiles Destroyed 311 | . . 3 7 . 19 7 1 . 3 42 23 16 13 3 . 8 34 12 5 14 5 8 54 11 13 10 Melee 1 | . . . . . . . . . . . . . . . . 1 . . . . . . . . . . Guns 159 | . . . 3 . 11 2 . . 1 23 18 12 6 3 . 7 30 12 5 7 5 . 12 . . 2 Cannons 52 | . . . 4 . 3 1 1 . 1 8 . . . . . . 4 . . . . 4 20 2 2 2 AOE 83 | . . 3 . . 5 4 . . . 10 5 4 4 . . . . . . 7 . 4 12 9 11 5 Classes Destroyed 29 | 1 . 2 6 . 4 . 1 . . 1 3 2 1 . . 1 2 . . 2 1 . 2 . . . Worker 12 | . . . . . 1 . . . . 1 . . . . . 3 3 . . . . . 2 . 1 1 Builder 12 | . . . . . . . . . . . . . . . . 2 5 . . . . . 4 1 . . Tunneler 9 | 3 1 . . . 3 . . . . 1 . . . . . . . . . . . . . 1 . . Hauler 22 | . . . . . 1 . . . . 5 . 1 1 . . 6 3 . . . . 2 . 1 2 . Recycler 19 | . . . 3 . 3 . . . . 4 . 1 . . . . 3 . . . . . 1 . 1 3 Mechanic 4 | . . . . . . . . . . . . 1 . . . . . . . . . 1 2 . . . Operator 5 | . . . . . . . . . . . . . 1 . 4 . . . . . . . . . . . Drone 2 | . . . . . . . . . . . . . . . . . . . . . 2 . . . . . Turret 1 | . . 1 . . . . . . . . . . . . . . . . . . . . . . . . Watcher 7 | . . . . . 1 . . . . 1 . 1 1 . . 1 . . . . . . 1 1 . . Swarmer 66 | . . . . . 6 . . . . 3 4 7 4 . . . 8 9 5 5 . 1 . . 9 5 Cutter 4 | . . . . . . . . . . . 4 . . . . . . . . . . . . . . . Saboteur 2 | . . . . . . . . . . . . 1 . . . . . . . . . . 1 . . . Grunt 124 | . . . 1 . 7 7 . . 2 20 9 5 5 . . 5 7 1 . 3 2 5 35 8 2 . Brawler 4 | . . . . . . . . . . 1 1 . . . . . . . . . . . 2 . . . Duelist 5 | . . . 1 . . . . . . . . 1 . . . . 1 . . . . . 1 . 1 . Protector 1 | . . . . . . . . . . . . . . . . . 1 . . . . . . . . . Researcher 4 | . . . . . . . . . . . . . . . . . . . . . . . 4 . . . Sentry 20 | . . . 3 . 3 . . . 1 1 1 . 3 . . 1 4 . . . 1 1 . . . 1 Specialist 7 | . . . . . . . . . . . 1 . . . . 1 . . . 2 . . 3 . . . Hunter 27 | . . . 1 . . . 1 . . 10 2 1 . . . 1 4 2 . . . . 4 1 . . Programmer 30 | . . . 1 . 3 . . . . 7 . 1 . . . . 8 . . 2 . . 5 . 1 2 Heavy 1 | . . . . . . . . . . . . . . . . . 1 . . . . . . . . . Behemoth 2 | . . . . . . . . . . . 1 . 1 . . . . . . . . . . . . . Cetus Guard 3 | . . . . . . . . . . . . . . 3 . . . . . . . . . . . . Enhanced Grunt 2 | . . . . . . . . . . . . . . . . 2 . . . . . . . . . . Combat Programmer 2 | . . . . . . . . . . . . . . . . . . . . . . . . . . 2 Striker 5 | . . . . . . . . . . . . . . . . . . . . 1 . 1 1 2 . . Executioner 1 | . . . . . . . . . . . . . . . . . . . . 1 . . . . . . Alpha 7 1 | . . . . . . . . . . . . . . . . . . . . . . . 1 . . . Protovariant H 1 | . . . . . . . . . . . . . . . . . . . . . . . 1 . . . Subdweller 3 | . . 3 . . . . . . . . . . . . . . . . . . . . . . . . Decomposer 1 | . . . . . . . . . . . . . . . . . . . . . 1 . . . . . Packrat 2 | . . . . . . . 2 . . . . . . . . . . . . . . . . . . . Samaritan 2 | . . . . . . . 2 . . . . . . . . . . . . . . . . . . . Best Kill Streak 15 | 1 1 2 4 . 6 4 1 . 3 8 6 7 6 2 1 6 11 5 5 9 3 3 15 6 11 5 Combat Bots Only 12 | . . 2 2 . 3 4 1 . 3 6 6 4 6 2 . 3 6 5 5 9 3 3 12 4 10 5 Max Kills in Single Turn 7 | 1 1 1 1 . 3 4 1 . 1 7 2 3 4 1 1 2 3 2 3 5 2 2 3 2 4 3 Gunslinging 1 | . . . . . . . . . . 1 1 1 . . . 1 1 1 1 1 1 . . . . . Exploded 4 | . . 1 . . 3 4 . . . 4 2 2 4 . . . . . . 4 . 2 3 2 4 3 Melee 1 | . . . . . . . . . . . . . . . . 1 . . . . . . . . . . Uniques/NPCs Destroyed . | . . . . . . . . . . . . . . . . . . . . . . . . . . . Combat | -11 -10 -10 -8 -8 -6 -6 -6 -6 -5 -5 -5 -5 -5 -5 -5 -5 -4 -4 -4 -4 -3 -3 -3 -2 -1 -1 -------- Run | Yrd Mat Sub Rec Scr Fac Low Low Dat Pro Fac Gar Fac Ext Cet Arc Hub Fac Upp Upp War Pro Res Tes Res Acc Com Hostile Shots Fired 3222 | . . 44 48 . 222 12 6 . 11 353 124 74 34 4 1 136 443 46 24 218 14 34 557 205 140 472 Missed 1059 | . . 19 14 . 67 3 2 . 6 113 27 15 11 2 1 39 130 17 4 75 3 12 126 83 77 213 Hits 2163 | . . 25 34 . 155 9 4 . 5 240 97 59 23 2 . 97 313 29 20 143 11 22 431 122 63 259 Melee 49 | . . . . . . . . . . . 14 . . . . . 7 . . . . . 23 3 2 . Projectile 2114 | . . 25 34 . 155 9 4 . 5 240 83 59 23 2 . 97 306 29 20 143 11 22 408 119 61 259 AOE 41 | . . 2 . . . . . . . . . . . . . . 3 . . . . . . . . 36 Critical Strikes 115 | . . . . . 1 1 . . . 10 4 4 . . . 2 13 . . 7 1 2 42 6 5 17 Actively Blocked 64 | . . . . . . . . . . . . . . . . . . . . . . . 38 5 5 16 Part Disruptions 10 | . . . . . . . . . . . . . . . . 3 1 . . 1 . . 1 . . 4 Damage Taken 40567 | . . 454 478 . 1378 147 62 . 76 4358 2036 943 255 32 34 1844 4773 263 166 2094 127 505 7966 3688 1321 7567 Core 4156 | . . 64 112 . 140 . . . . 147 165 56 15 . . 105 246 27 20 157 . 30 581 629 109 1553 Absorbed by Shields 5518 | . . . . . 273 25 23 . 26 397 . 64 57 14 6 . 1706 229 142 1074 136 59 1287 . . . Reduced by Siege Mode 921 | . . . . . . . . . . 5 . 3 . . . . 209 . . . 11 . 693 . . . Redirected to Shielding 39 | . . . . . . . . . . . . . . . . . . . . . . . . . . 39 Ignored by Resistances 652 | . . . . . . . . . . . . 39 143 33 29 398 10 . . . . . . . . . Regen/Repaired (Parts) 1830 | . . . . . . . . . . . . . . . . . 884 . . 737 . . . 136 73 . Core Remaining (%) 61 | 100 . . . 29 . . . . 83 . . . . . . 51 . . . . 60 . 53 56 . . Volleys Fired 1042 | 8 11 30 29 . 52 7 10 . 4 99 79 23 19 8 25 26 100 12 20 17 19 62 229 51 18 84 Largest 3 | 2 2 2 2 . 3 3 3 . 3 3 3 3 3 3 3 3 3 3 3 3 3 2 2 1 2 3 Hottest 250 | 40 100 40 100 . 240 193 250 . 250 250 241 240 240 115 105 105 160 103 103 113 108 130 193 120 94 195 Shots Fired 1821 | 16 19 37 57 . 124 19 26 . 12 198 144 56 56 19 38 72 257 36 42 44 45 63 240 54 20 127 Gun 1243 | 16 16 24 29 . 71 17 17 . 7 132 97 53 55 17 38 70 210 36 42 41 45 1 107 1 2 99 Cannon 476 | . . . 28 . 49 1 9 . 5 58 40 . . . . 2 47 . . . . 58 120 29 8 22 Launcher 93 | . . 13 . . 3 1 . . . 7 5 3 1 . . . . . . 3 . 4 13 24 10 6 Special 9 | . 3 . . . 1 . . . . 1 2 . . 2 . . . . . . . . . . . . Kinetic 697 | 16 16 24 29 . 37 6 4 . . 9 4 . . 16 38 70 210 36 42 41 45 1 17 11 8 17 Thermal 909 | . 3 . 28 . 83 12 22 . 12 181 133 53 55 1 . 2 47 . . . . 58 111 17 . 91 Explosive 90 | . . 13 . . 3 1 . . . 7 5 3 1 . . . . . . 3 . 4 13 24 10 3 Electromagnetic 86 | . . . . . . . . . . . . . . . . . . . . . . . 66 2 2 16 Entropic 33 | . . . . . . . . . . . . . . . . . . . . . . . 33 . . . Robot Hit Streak 49 | 3 4 8 9 . 35 16 12 . 18 36 49 17 19 7 6 13 24 15 3 8 18 26 27 11 10 31 Robot Miss Streak 6 | 1 5 3 6 . 4 3 2 . 1 6 5 3 4 2 6 5 4 2 3 3 4 2 3 4 1 2 Penetration Max 3 | . . . . . . . . . . 1 . . . 1 . 3 1 1 1 1 . . 1 . . . Secondary Targets 43 | . . . . . 2 . . . . 6 7 1 2 1 . 2 10 4 2 2 1 . 2 . . 1 Max Gunslinging Chain 2 | . . . . . 1 . . . . 1 1 1 1 1 . 1 2 1 2 1 1 . 1 . . 1 Capacitor 225 | . . . . . . . . . . . . . . . . . . . . . . 57 168 . . . Shots Hit Robots 1291 | 11 9 20 37 . 89 12 18 . 10 144 178 52 46 13 19 46 168 19 14 26 24 24 172 26 17 97 Core Hits 1051 | 5 2 12 19 . 72 27 12 . 9 190 114 68 49 7 10 37 98 15 8 50 9 17 115 33 25 48 Critical Kills 55 | 1 . . . . 2 . 1 . 1 2 . . . 3 4 11 21 5 1 2 1 . . . . . Critical Parts Destroyed 44 | . . . . . . . . . . 2 . 1 . 1 3 10 19 . 2 2 2 . 1 . . 1 Critical Strikes 124 | 1 . . . . 2 . 1 . 1 4 8 1 . 5 7 21 41 5 3 4 3 . 16 . . 1 Burn 3 | . . . . . . . . . . . 3 . . . . . . . . . . . . . . . Meltdown 1 | . . . . . . . . . 1 . . . . . . . . . . . . . . . . . Destroy 97 | 1 . . . . 2 . 1 . . 4 . . . 5 7 20 41 5 3 4 3 . 1 . . . Corrupt 1 | . . . . . . . . . . . . . . . . . . . . . . . 1 . . . Smash 3 | . . . . . . . . . . . . 1 . . . 1 . . . . . . . . . 1 Sever 5 | . . . . . . . . . . . 5 . . . . . . . . . . . . . . . Sunder 14 | . . . . . . . . . . . . . . . . . . . . . . . 14 . . . Melee Attacks 171 | . . . . . 21 . . . . 17 57 15 . . . 7 13 . . . . . . 8 18 15 Impact 80 | . . . . . 21 . . . . 17 . 15 . . . 7 13 . . . . . . . . 7 Slashing 91 | . . . . . . . . . . . 57 . . . . . . . . . . . . 8 18 8 Piercing . | . . . . . . . . . . . . . . . . . . . . . . . . . . . Sneak Attacks 14 | . . . . . 4 . . . . 2 . 1 . . . 3 1 . . . . . . . 3 . Combat Hostiles . | . . . . . . . . . . . . . . . . . . . . . . . . . . . Follow-up Attacks . | . . . . . . . . . . . . . . . . . . . . . . . . . . . Damage Inflicted 58956 | 92 70 691 742 . 3028 674 376 . 316 6862 5626 2080 1502 365 292 1774 5088 566 452 2117 635 1841 12118 4438 2861 4350 Guns 23852 | 92 70 124 210 . 1174 228 215 . 220 2866 2082 1135 1147 365 292 1299 4179 566 452 949 635 . 2818 . 66 2668 Cannons 11414 | . . . 532 . 771 33 161 . 96 1298 986 . . . . . 784 . . . . 841 4702 504 247 459 Explosions 20073 | . . 567 . . 753 413 . . . 2522 661 826 355 . . . . . . 1168 . 1000 4566 3934 2248 1060 Melee 3470 | . . . . . 330 . . . . 176 1897 119 . . . 379 106 . . . . . . . 300 163 Ramming 147 | . . . . . . . . . . . . . . . . 96 19 . . . . . 32 . . . Kinetic 10650 | 92 70 124 210 . 401 13 26 . . 28 22 . . 330 292 1299 4179 566 452 949 635 . 432 . 227 303 Thermal 20056 | . . . 532 . 1544 248 350 . 316 4136 3046 1135 1147 35 . . 784 . . . . 841 2876 504 . 2562 Explosive 20024 | . . 567 . . 753 413 . . . 2522 661 826 355 . . . . . . 1168 . 1000 4566 3934 2248 1011 Electromagnetic 2470 | . . . . . . . . . . . . . . . . . . . . . . . 2073 . 86 311 Impact 1273 | . . . . . 330 . . . . 176 . 119 . . . 379 106 . . . . . . . . 163 Slashing 2197 | . . . . . . . . . . . 1897 . . . . . . . . . . . . . 300 . Piercing . | . . . . . . . . . . . . . . . . . . . . . . . . . . . Entropic 2139 | . . . . . . . . . . . . . . . . . . . . . . . 2139 . . . Highest Corruption 33 | . . . 2 . 5 5 5 5 5 3 14 14 14 14 14 3 9 9 9 4 4 1 33 11 1 12 Average Corruption 7 | . . . 1 . 4 5 5 5 5 2 10 14 14 14 8 1 5 9 8 3 4 1 15 6 1 6 Corruption Purged 26 | . . . . . . . . . . . . . . . 17 . . . 9 . . . . . . . Corruption Blocked 5 | . . . . . . . . . . . . . . . . . . . . . . . . . . 5 Effects 481 | . . . 2 . 11 19 23 3 13 14 51 38 40 31 11 1 38 17 18 3 18 3 58 40 . 29 Message Errors 100 | . . . . . 2 4 6 1 1 2 10 15 10 5 3 . 4 4 5 . 8 2 9 4 . 5 Matter Fused 90 | . . . . . 2 4 6 2 4 2 10 6 5 3 2 1 9 5 5 . 2 . 12 6 . 4 Heat Flow Errors 62 | . . . . . 2 3 2 . 1 5 5 6 8 7 2 . 3 2 2 1 . 1 9 3 . . Energy Discharges 60 | . . . . . 2 4 1 . 2 1 8 3 6 3 1 . 5 2 1 . 1 . 7 8 . 5 Parts Rejected 12 | . . . . . . . . . . . 1 3 . 1 1 . 1 . . . . . 1 2 . 2 Parts Fused 14 | . . . . . 1 . . . . 1 3 . . 3 . . 1 1 . . 1 . . 2 . 1 Data Loss (minor) 59 | . . . 1 . . 1 3 . 3 2 7 1 6 3 1 . 7 3 3 1 3 . 7 2 . 5 Data Loss (major) 20 | . . . 1 . . 1 2 . . . 2 . 3 . . . 2 . 1 . . . 3 5 . . Misfires 25 | . . . . . . 1 3 . 1 . 3 1 1 3 . . 2 . 1 . 2 . 2 3 . 2 Alerts 9 | . . . . . 1 1 . . . 1 1 1 . 1 . . 1 . . . 1 . 1 . . . Misdirections 10 | . . . . . . . . . . . . . 1 . . . . . . . . . . 5 . 4 Weapon Failures 20 | . . . . . 1 . . . 1 . 1 2 . 2 1 . 3 . . 1 . . 7 . . 1 Overload Shots 12 | . . . . . . . . . . 10 . . . . . . . . . . . . . 2 . . Overflow Damage 1780 | . . . 39 . 134 . 24 . 3 133 32 87 . . . 239 6 . . 12 . 95 326 194 352 104 Projectiles 407 | . . . 39 . 42 . 24 . 3 84 4 . . . . . 6 . . . . 17 176 . 12 . Explosions 781 | . . . . . 14 . . . . 12 10 3 . . . . . . . 12 . 78 150 194 299 9 Melee 592 | . . . . . 78 . . . . 37 18 84 . . . 239 . . . . . . . . 41 95 Knockbacks 6 | . . . . . 2 . . . . . . . . . . 1 1 . . . . . . . . 2 Impact 6 | . . . . . 2 . . . . . . . . . . 1 1 . . . . . . . . 2 Kinetic . | . . . . . . . . . . . . . . . . . . . . . . . . . . . Secondary . | . . . . . . . . . . . . . . . . . . . . . . . . . . . Self-Inflicted Damage 676 | . . . . . . . . . . 197 36 9 . . . . . . . . . . 239 93 . 102 Shots 16 | . . . . . . . . . . 8 2 1 . . . . . . . . . . 3 1 . 1 Rammed 9 | . . . . . . . . . . . . . . . . 4 1 . . . . . 4 . . . Targets Rammed 10 | . . . . . . . . . . . . . . . . 5 1 . . . . . 4 . . . Kicked . | . . . . . . . . . . . . . . . . . . . . . . . . . . . Crushed 1 | . . . . . . . . . . . . . . . . 1 . . . . . . . . . . Highest Temperature 565 | . 20 . 78 . 244 202 217 . 192 565 234 264 244 232 132 279 228 180 354 103 217 250 373 261 161 291 Average Temperature 62 | . 10 . 23 . 63 59 91 . 84 96 69 86 76 93 45 99 30 35 32 40 61 75 88 73 60 61 Received Heat Transfer 4100 | . . 60 90 . 384 79 . . 24 432 423 145 62 . . 246 400 5 . 296 35 119 828 234 72 166 Effects 10 | . . . . . . . 1 . . 3 1 . . . . 1 . . 1 . . . 2 . . 1 Shutdowns 1 | . . . . . . . . . . 1 . . . . . . . . . . . . . . . . Energy Bleed 6 | . . . . . . . . . . 1 1 . . . . 1 . . . . . . 2 . . 1 Interference 1 | . . . . . . . 1 . . . . . . . . . . . . . . . . . . . Short Circuit 1 | . . . . . . . . . . . . . . . . . . . 1 . . . . . . . Damage (minor) 1 | . . . . . . . . . . 1 . . . . . . . . . . . . . . . . Siege Activations 20 | . . . . . . . . . . 2 1 2 . 1 . . 3 . . . 1 . 10 . . . Total Turns 288 | . . . . . . . . . . 13 8 7 . 3 . . 89 . . . 23 . 145 . . . Longest Duration 70 | . . . . . . . . . . 12 8 4 . 3 . . 47 . . . 23 . 70 . . . Martial Activations . | . . . . . . . . . . . . . . . . . . . . . . . . . . . Shielding Activations . | . . . . . . . . . . . . . . . . . . . . . . . . . . . Robots Disrupted . | . . . . . . . . . . . . . . . . . . . . . . . . . . . Combat Hostiles . | . . . . . . . . . . . . . . . . . . . . . . . . . . . Robots Corrupted 13 | . . . . . 2 . . . . 1 . . . . . . . . . . . . 10 . . . Combat Hostiles 10 | . . . . . . . . . . . . . . . . . . . . . . . 10 . . . Parts Fried 26 | . . . . . 1 . . . . 1 . . . . . 4 . . . . . . 19 . . 1 Impact Corruptions 16 | . . . . . 5 . . . . 2 . 1 . . . 6 . . . . . . . . . 2 Robots Melted 6 | . . . . . . . . . 1 1 . . 3 . . . . . . . . . . . . 1 Combat Hostiles 6 | . . . . . . . . . 1 1 . . 3 . . . . . . . . . . . . 1 Parts Melted 59 | . . . . . 9 1 2 . 1 20 9 5 7 . . . . . . 1 . . 3 . . 1 Heat Transferred 28354 | . . . 814 . 2926 550 675 . 650 6793 5759 2525 2600 75 . . . . . . . 74 2662 481 . 1770 Parts Sabotaged . | . . . . . . . . . . . . . . . . . . . . . . . . . . . Parts Stolen . | . . . . . . . . . . . . . . . . . . . . . . . . . . . Parts Stripped . | . . . . . . . . . . . . . . . . . . . . . . . . . . . Power Chain Reactions . | . . . . . . . . . . . . . . . . . . . . . . . . . . . Alert | -11 -10 -10 -8 -8 -6 -6 -6 -6 -5 -5 -5 -5 -5 -5 -5 -5 -4 -4 -4 -4 -3 -3 -3 -2 -1 -1 ------- Run | Yrd Mat Sub Rec Scr Fac Low Low Dat Pro Fac Gar Fac Ext Cet Arc Hub Fac Upp Upp War Pro Res Tes Res Acc Com Maximum Alert Level 4 | . . . . . . . . . . 3 4 3 1 . . 3 4 . . . . 1 4 4 3 3 Low Security (%) 37 | 100 100 . 100 . 100 . . . . 25 . . 52 100 100 42 . . . . . 48 2 . . . Level 1 15 | . . . . . . . . . . 48 . . 47 . . 9 24 . . . . 51 14 . . . Level 2 21 | . . . . . . . . . . 16 22 98 . . . 35 53 . . . . . 17 . 65 51 Level 3 21 | . . . . . . . . . . 10 68 1 . . . 11 13 . . . . . 37 98 34 47 Level 4 3 | . . . . . . . . . . . 8 . . . . . 8 . . . . . 27 1 . . Level 5 . | . . . . . . . . . . . . . . . . . . . . . . . . . . . High Security . | . . . . . . . . . . . . . . . . . . . . . . . . . . . Max Security . | . . . . . . . . . . . . . . . . . . . . . . . . . . . Peak Influence 1446 | 5 30 . 66 . 175 . . . . 737 1178 700 346 190 132 996 1253 . . . . 324 1446 1106 968 867 Initial 804 | . . . . . . . . . . . 501 618 329 42 37 . 483 . . . . 324 132 804 631 605 Average 440 | 1 5 . 12 . 66 . . . . 354 925 584 192 72 62 359 575 . . . . 192 866 963 694 679 Influence Increases 14262 | 15 44 20 232 . 701 150 30 . 90 1404 767 508 869 362 239 1328 1421 315 125 417 70 699 2020 934 752 750 Destroy 0b10 Robot/C 6880 | . . 20 160 . 380 140 20 . 60 840 460 320 460 160 80 380 660 240 100 340 60 160 1160 220 260 200 Destroy 0b10 Robot/NC 570 | 15 5 . 15 . 45 . . . . 60 40 20 25 10 25 85 75 . . 5 10 15 50 20 20 30 Destroy Leader 982 | . . . . . 104 10 10 . . 202 40 54 42 . . 80 156 30 10 . . 24 122 34 44 20 Allied During Kill 1014 | . . . 2 . . . . . . . . . 255 164 105 446 . . . 42 . . . . . . Successful Hack 657 | . 6 . 8 . 45 . . . . 14 . 2 14 . . 30 126 . . . . 58 104 42 83 125 Select Force Hacks 130 | . 30 . . . . . . . . . . . . . . 100 . . . . . . . . . . Disable Machine 405 | . . . . . 15 . . . . 30 . . . . 15 75 30 . . . . 15 165 30 30 . Anti-Garrison Action 150 | . . . . . . . . . . . 150 . . . . . . . . . . . . . . . Destroy Structure 1884 | . 3 . 2 . 67 . . . . 228 77 82 58 28 14 72 164 . . . . 112 344 363 195 75 Advance Influence 300 | . . . . . . . . . . . . . . . . . . . . . . 300 . . . . Partial Spotted 60 | . . . . . . . . . . . . . . . . . . . . . . . . 15 30 15 Lose Combat Pursuer 1230 | . . . 45 . 45 . . . 30 30 . 30 15 . . 60 210 45 15 30 . 15 75 210 90 285 Influence Decreases 13891 | 15 39 25 200 32 530 317 34 . 90 687 306 1012 1467 344 333 340 1182 741 639 471 267 500 825 1312 857 1326 Entered New Map 4450 | . . 3 . 32 . 64 2 . . . 216 560 345 34 57 . 505 455 153 287 233 12 103 626 421 342 Time Decay 6633 | 15 39 22 164 . 450 233 32 . 90 507 . 422 452 218 196 260 577 286 486 64 34 478 482 486 206 434 Lost Part 1590 | . . . 10 . 70 20 . . . 180 90 10 . . . . 100 . . 30 . 10 240 200 80 550 Lost Ally 618 | . . . 26 . 10 . . . . . . 20 220 92 80 80 . . . 90 . . . . . . Purge Threat 600 | . . . . . . . . . . . . . 450 . . . . . . . . . . . 150 . Squads Dispatched 89 | . 2 . . . 7 . . . . 16 . 8 2 . . 10 12 . . . . 4 15 2 . 11 Investigation 10 | . 1 . . . 3 . . . . . . . . . . 2 . . . . . . 1 1 . 2 Extermination 17 | . . . . . 2 . . . . 4 . 2 . . . . 3 . . . . . 2 . . 4 Reinforcement 43 | . 1 . . . 1 . . . . 9 . 3 2 . . 6 6 . . . . 4 7 1 . 3 Assault 15 | . . . . . . . . . . . . 3 . . . 2 3 . . . . . 5 . . 2 Garrison 4 | . . . . . 1 . . . . 3 . . . . . . . . . . . . . . . . Intercept . | . . . . . . . . . . . . . . . . . . . . . . . . . . . Searches Triggered . | . . . . . . . . . . . . . . . . . . . . . . . . . . . Data Miner Redirects 13 | . . . . . . . . . . . . 4 . . . . 3 . . . . . 4 . . 2 Construction Impeded 9 | . . . . . . . . . . 2 . 1 1 . . 2 2 . . . . . 1 . . . Haulers Reinforced 15 | . . . . . 1 . . . . 4 . 1 . . . 3 2 . . . . 3 . 1 . . Active Scanning Responses . | . . . . . . . . . . . . . . . . . . . . . . . . . . . Cargo Convoy Interrupts 1 | . . . . . . . . . . . . 1 . . . . . . . . . . . . . . Stealth | -11 -10 -10 -8 -8 -6 -6 -6 -6 -5 -5 -5 -5 -5 -5 -5 -5 -4 -4 -4 -4 -3 -3 -3 -2 -1 -1 --------- Run | Yrd Mat Sub Rec Scr Fac Low Low Dat Pro Fac Gar Fac Ext Cet Arc Hub Fac Upp Upp War Pro Res Tes Res Acc Com Distress Signals 41 | . . . . . 2 . . . . 3 . 4 2 2 . 1 10 . . . . 4 4 7 . 2 Communications Jammed 13 | . . . . . . . . . . 12 . . . . . . 1 . . . . . . . . . Distress Signals 13 | . . . . . . . . . . 12 . . . . . . 1 . . . . . . . . . Times Spotted 667 | . 1 8 10 . 26 7 1 . 5 51 24 28 27 9 24 44 57 15 6 81 6 25 78 48 26 60 Peak Tracking Total 23 | . . 3 3 . 4 4 1 . 3 6 5 7 8 5 2 23 11 5 5 16 3 7 10 14 11 11 Tactical Retreats 59 | . . . 2 . 2 . . . 1 2 . 2 1 . . 3 9 1 1 1 . 1 5 6 6 16 Traps | -11 -10 -10 -8 -8 -6 -6 -6 -6 -5 -5 -5 -5 -5 -5 -5 -5 -4 -4 -4 -4 -3 -3 -3 -2 -1 -1 ------- Run | Yrd Mat Sub Rec Scr Fac Low Low Dat Pro Fac Gar Fac Ext Cet Arc Hub Fac Upp Upp War Pro Res Tes Res Acc Com Traps Triggered 4 | . . . . . 1 . . . . . . 1 . . . . . . . . . . . . . 2 Indirectly . | . . . . . . . . . . . . . . . . . . . . . . . . . . . Trap Hack Attempts . | . . . . . . . . . . . . . . . . . . . . . . . . . . . Triggered . | . . . . . . . . . . . . . . . . . . . . . . . . . . . Disarmed . | . . . . . . . . . . . . . . . . . . . . . . . . . . . Reprogrammed . | . . . . . . . . . . . . . . . . . . . . . . . . . . . Reused . | . . . . . . . . . . . . . . . . . . . . . . . . . . . Traps Extracted . | . . . . . . . . . . . . . . . . . . . . . . . . . . . Installed . | . . . . . . . . . . . . . . . . . . . . . . . . . . . Triggered . | . . . . . . . . . . . . . . . . . . . . . . . . . . . Machines | -11 -10 -10 -8 -8 -6 -6 -6 -6 -5 -5 -5 -5 -5 -5 -5 -5 -4 -4 -4 -4 -3 -3 -3 -2 -1 -1 ---------- Run | Yrd Mat Sub Rec Scr Fac Low Low Dat Pro Fac Gar Fac Ext Cet Arc Hub Fac Upp Upp War Pro Res Tes Res Acc Com Machines Disabled 32 | . . 1 . . 1 . . . . 2 1 . 1 . 1 5 2 . . 1 . 1 12 2 2 . Max in Single Turn 2 | . . 1 . . 1 . . . . 1 1 . . . . 1 1 . . . . 1 2 1 1 . Garrison Access 7 | . . . . . . . . . . . . 1 . . . 1 1 . . . . 1 1 2 . . Garrison Relay 1 | . . . . . . . . . . . 1 . . . . . . . . . . . . . . . Network Hub 4 | . . . . . . . . . . . . . . . . 4 . . . . . . . . . . Machines Repaired . | . . . . . . . . . . . . . . . . . . . . . . . . . . . Machines Dismantled . | . . . . . . . . . . . . . . . . . . . . . . . . . . . Machines Sabotaged 2 | . . . . . . . . . . . . . . . . 2 . . . . . . . . . . Overloaded Fab Kills . | . . . . . . . . . . . . . . . . . . . . . . . . . . . Hacking | -11 -10 -10 -8 -8 -6 -6 -6 -6 -5 -5 -5 -5 -5 -5 -5 -5 -4 -4 -4 -4 -3 -3 -3 -2 -1 -1 --------- Run | Yrd Mat Sub Rec Scr Fac Low Low Dat Pro Fac Gar Fac Ext Cet Arc Hub Fac Upp Upp War Pro Res Tes Res Acc Com Machines Accessed 71 | . 2 . 3 . 8 . 1 4 . 7 . 1 7 . . 7 7 . 1 3 . 4 4 1 5 6 Terminals 44 | . 1 . 3 . 5 . . . . 3 . . 7 . . 7 3 . . . . 3 2 1 3 6 Fabricators 4 | . . . . . 2 . . . . 1 . . . . . . . . . . . . . . 1 . Repair Stations 3 | . . . . . . . . . . . . 1 . . . . 2 . . . . . . . . . Recycling Units 1 | . 1 . . . . . . . . . . . . . . . . . . . . . . . . . Scanalyzers 5 | . . . . . 1 . . . . 1 . . . . . . 1 . . . . . 1 . 1 . Garrison Access 5 | . . . . . . . . . . 2 . . . . . . 1 . . . . 1 1 . . . Total Hacks 291 | . 3 . 8 . 28 . 1 22 . 11 . 3 22 . . 16 62 . 1 7 . 26 23 5 28 25 Successful 150 | . 3 . 1 . 16 . 1 22 . 3 . 2 9 . . 8 30 . 1 7 . 6 11 2 13 15 Failed 140 | . . . 7 . 12 . . . . 8 . 1 13 . . 8 32 . . . . 20 12 3 14 10 Catastrophic 29 | . . . 4 . 1 . . . . 2 . . 4 . . . 5 . . . . 7 3 1 . 2 Database Lockouts 1 | . . . . . . . . . . . . . . . . . . . . . . . . . 1 . Manual 87 | . 2 . 8 . 5 . . . . . . . 4 1 . 9 18 . . 1 . 16 8 . 4 11 Terminals 180 | . 2 . 8 . 11 . . . . 3 . . 22 . . 16 28 . . . . 24 16 5 20 25 Fabricators 14 | . . . . . 7 . . . . 3 . . . . . . . . . . . . . . 4 . Repair Stations 27 | . . . . . . . . . . . . 3 . . . . 24 . . . . . . . . . Recycling Units 1 | . 1 . . . . . . . . . . . . . . . . . . . . . . . . . Scanalyzers 28 | . . . . . 10 . . . . 2 . . . . . . 6 . . . . . 6 . 4 . Garrison Access 10 | . . . . . . . . . . 3 . . . . . . 4 . . . . 2 1 . . . Terminal Hacks 102 | . 2 . 1 . 5 . 1 22 . 1 . . 7 . . 5 13 . 1 7 . 5 6 2 10 14 Record 11 | . . . . . . . . 7 . . . . . . . . . . . 1 . 1 . . . 2 Part Schematic 12 | . 1 . 1 . . . . 8 . . . . . . . . 2 . . . . . . . . . Robot Schematic 4 | . . . . . . . . 4 . . . . . . . . . . . . . . . . . . Robot Analysis 1 | . . . . . . . . . . . . . . . . . 1 . . . . . . . . . Prototype ID Bank 9 | . . . . . . . . 3 . . . . . . . . 1 . . 5 . . . . . . Open Door 4 | . . . . . . . 1 . . . . . . . . . . . 1 1 . . . . . 1 Level Access Points 2 | . . . . . . . . . . . . . . . . 1 . . . . . . 1 . . . Branch Access Points 5 | . . . . . 1 . . . . . . . . . . . 1 . . . . 1 . 1 1 . Emergency Access Points 2 | . . . . . . . . . . . . . . . . . 1 . . . . . . . . 1 Machine Index 4 | . . . . . . . . . . . . . . . . 1 1 . . . . . . . 1 1 Terminal Index 4 | . . . . . . . . . . . . . . . . . 1 . . . . 1 1 . 1 . Repair Station Index 1 | . . . . . . . . . . . . . . . . . 1 . . . . . . . . . Recycling Unit Index 1 | . 1 . . . . . . . . . . . . . . . . . . . . . . . . . Alert Level 5 | . . . . . 1 . . . . . . . 2 . . . . . . . . . 1 . 1 . Unreport Threat 4 | . . . . . . . . . . . . . 3 . . . . . . . . . . . 1 . Locate Traps 7 | . . . . . 1 . . . . . . . 2 . . 1 . . . . . . 1 . 1 1 Maintenance Status 3 | . . . . . . . . . . . . . . . . 1 . . . . . . 1 . 1 . Security Status 1 | . . . . . . . . . . . . . . . . . . . . . . . . . . 1 Patrol Status 1 | . . . . . . . . . . . . . . . . . . . . . . . . . . 1 Hauler Manifests 5 | . . . . . 1 . . . . 1 . . . . . 1 2 . . . . . . . . . Registered Components 6 | . . . . . 1 . . . . . . . . . . . 1 . . . . 1 . 1 1 1 Registered Prototypes 4 | . . . . . . . . . . . . . . . . . . . . . . 1 1 . 1 1 Zone Layout 6 | . . . . . . . . . . . . . . . . . 1 . . . . . . . 1 4 Fabricator Hacks 6 | . . . . . 3 . . . . 1 . . . . . . . . . . . . . . 2 . Network Status 2 | . . . . . . . . . . 1 . . . . . . . . . . . . . . 1 . Load Schematic 3 | . . . . . 2 . . . . . . . . . . . . . . . . . . . 1 . Build 1 | . . . . . 1 . . . . . . . . . . . . . . . . . . . . . Repair Station Hacks 13 | . . . . . . . . . . . . 2 . . . . 11 . . . . . . . . . Scan Component 7 | . . . . . . . . . . . . 1 . . . . 6 . . . . . . . . . Repair 6 | . . . . . . . . . . . . 1 . . . . 5 . . . . . . . . . Recycling Unit Hacks . | . . . . . . . . . . . . . . . . . . . . . . . . . . . Scanalyzer 16 | . . . . . 8 . . . . . . . . . . . 5 . . . . . 2 . 1 . Insert Component 7 | . . . . . 4 . . . . . . . . . . . 3 . . . . . . . . . Analyze 5 | . . . . . 3 . . . . . . . . . . . 2 . . . . . . . . . Retrieve Study 4 | . . . . . 1 . . . . . . . . . . . . . . . . . 2 . 1 . Garrison Access Hacks 4 | . . . . . . . . . . 1 . . . . . . 1 . . . . 1 1 . . . Unlock Access 1 | . . . . . . . . . . 1 . . . . . . . . . . . . . . . . Seal Access 3 | . . . . . . . . . . . . . . . . . 1 . . . . 1 1 . . . Unauthorized Hacks 9 | . 1 . . . . . . . . . . . 2 . . 3 . . . . . . 2 . . 1 Terminals 7 | . . . . . . . . . . . . . 2 . . 3 . . . . . . 1 . . 1 Track 1 | . . . . . . . . . . . . . . . . . . . . . . . . . . 1 Botnet 4 | . . . . . . . . . . . . . 2 . . 1 . . . . . . 1 . . . Sabotage 2 | . . . . . . . . . . . . . . . . 2 . . . . . . . . . . Fabricators . | . . . . . . . . . . . . . . . . . . . . . . . . . . . Repair Stations . | . . . . . . . . . . . . . . . . . . . . . . . . . . . Recycling Units 1 | . 1 . . . . . . . . . . . . . . . . . . . . . . . . . Tunnel 1 | . 1 . . . . . . . . . . . . . . . . . . . . . . . . . Scanalyzers 1 | . . . . . . . . . . . . . . . . . . . . . . . 1 . . . Researchers 1 | . . . . . . . . . . . . . . . . . . . . . . . 1 . . . Garrison Access . | . . . . . . . . . . . . . . . . . . . . . . . . . . . Data Cores Recovered . | . . . . . . . . . . . . . . . . . . . . . . . . . . . Used . | . . . . . . . . . . . . . . . . . . . . . . . . . . . Hacking Detections 55 | . . . 3 . 8 . . . . 7 . 1 7 1 . 5 5 . . . . 4 3 1 5 5 Full Trace Events 7 | . . . 3 . 3 . . . . . . . . . . . . . . . . . . 1 . . Feedback Events . | . . . . . . . . . . . . . . . . . . . . . . . . . . . Feedback Blocked . | . . . . . . . . . . . . . . . . . . . . . . . . . . . Robot Schematics Acquired 5 | . . . . . . . . 4 . . . . . . . . . . . . . . 1 . . . Robots Built . | . . . . . . . . . . . . . . . . . . . . . . . . . . . Authchips . | . . . . . . . . . . . . . . . . . . . . . . . . . . . Time . | . . . . . . . . . . . . . . . . . . . . . . . . . . . Total Robot Build Rating . | . . . . . . . . . . . . . . . . . . . . . . . . . . . Part Schematics Acquired 21 | . 1 . 1 . 3 . . 8 . . . . . . . . 4 . . . . . 4 . . . Parts Built 2 | . . . . . 2 . . . . . . . . . . . . . . . . . . . . . Authchips . | . . . . . . . . . . . . . . . . . . . . . . . . . . . Time 95 | . . . . . 95 . . . . . . . . . . . . . . . . . . . . . Total Part Build Rating 10 | . . . . . 10 . . . . . . . . . . . . . . . . . . . . . Part Studies Acquired 4 | . . . . . 1 . . . . . . . . . . . . . . . . . 2 . 1 . Parts Repaired 5 | . . . . . . . . . . . . . . . . . 5 . . . . . . . . . Time 283 | . . . . . . . . . . . . 50 . . . . 233 . . . . . . . . . Parts Recycled . | . . . . . . . . . . . . . . . . . . . . . . . . . . . Recycled Matter . | . . . . . . . . . . . . . . . . . . . . . . . . . . . Retrieved Matter . | . . . . . . . . . . . . . . . . . . . . . . . . . . . Retrieved Components . | . . . . . . . . . . . . . . . . . . . . . . . . . . . Parts Scanalyzed 6 | . . . . . 3 . . . . . . . . . . . 3 . . . . . . . . . Part Schematics Acquired 5 | . . . . . 3 . . . . . . . . . . . 2 . . . . . . . . . Parts Damaged 1 | . . . . . . . . . . . . . . . . . 1 . . . . . . . . . Bothacking | -11 -10 -10 -8 -8 -6 -6 -6 -6 -5 -5 -5 -5 -5 -5 -5 -5 -4 -4 -4 -4 -3 -3 -3 -2 -1 -1 ------------ Run | Yrd Mat Sub Rec Scr Fac Low Low Dat Pro Fac Gar Fac Ext Cet Arc Hub Fac Upp Upp War Pro Res Tes Res Acc Com Used RIF Installer . | . . . . . . . . . . . . . . . . . . . . . . . . . . . Robots Hacked . | . . . . . . . . . . . . . . . . . . . . . . . . . . . Non-combat . | . . . . . . . . . . . . . . . . . . . . . . . . . . . Combat . | . . . . . . . . . . . . . . . . . . . . . . . . . . . Robot Hacks Applied . | . . . . . . . . . . . . . . . . . . . . . . . . . . . Relay Couplers Released 15 | . . . . . . . . . . . 5 2 . . . 2 . . . . . . 3 3 . . Machine Destruction 15 | . . . . . . . . . . . 5 2 . . . 2 . . . . . . 3 3 . . Fabnet Peak Effective % . | . . . . . . . . . . . . . . . . . . . . . . . . . . . Robots Rewired 25 | . . . 7 . . . . . . . . . 13 . . . . . . 5 . . . . . . Allies Hacked . | . . . . . . . . . . . . . . . . . . . . . . . . . . . Hacks Repelled . | . . . . . . . . . . . . . . . . . . . . . . . . . . . Allies | -11 -10 -10 -8 -8 -6 -6 -6 -6 -5 -5 -5 -5 -5 -5 -5 -5 -4 -4 -4 -4 -3 -3 -3 -2 -1 -1 -------- Run | Yrd Mat Sub Rec Scr Fac Low Low Dat Pro Fac Gar Fac Ext Cet Arc Hub Fac Upp Upp War Pro Res Tes Res Acc Com Total Allies 43 | . . . 7 . . . . . . . . . 26 5 . . . . . 5 . . . . . . Largest Group 14 | . . . 6 2 2 . . . . . . . 14 14 14 7 . . . 5 . . . . . . Highest-Rated Group 867 | . . . 72 14 14 . . . . . . . 538 867 860 538 . . . 276 . . . . . . Highest-Rated Ally 159 | . . . 16 9 9 . . . . . . . 159 159 159 96 . . . 64 . . . . . . Initial Warlord ECA Mod 3 | . . . . . . . . . . . . 3 3 3 3 3 2 2 2 2 1 1 1 . . . Total Orders 6 | . . . . . . . . . . . . 4 . . . 2 . . . . . . . . . . STAY 1 | . . . . . . . . . . . . . . . . 1 . . . . . . . . . . FOLLOW 1 | . . . . . . . . . . . . . . . . 1 . . . . . . . . . . EXPLORE 4 | . . . . . . . . . . . . 4 . . . . . . . . . . . . . . Ally Attacks 342 | . . . 5 . . . . . . . . . 110 37 58 79 . . . 53 . . . . . . Total Damage 10385 | . . . 29 . . . . . . . . . 2194 1103 1580 3057 . . . 2422 . . . . . . Kills 48 | . . . 1 . . . . . . . . . 12 7 7 17 . . . 4 . . . . . . Allies Corrupted . | . . . . . . . . . . . . . . . . . . . . . . . . . . . Allies Melted 2 | . . . . . . . . . . . . . . . . . . . . . . . . 2 . . Intel | -11 -10 -10 -8 -8 -6 -6 -6 -6 -5 -5 -5 -5 -5 -5 -5 -5 -4 -4 -4 -4 -3 -3 -3 -2 -1 -1 ------- Run | Yrd Mat Sub Rec Scr Fac Low Low Dat Pro Fac Gar Fac Ext Cet Arc Hub Fac Upp Upp War Pro Res Tes Res Acc Com Active Infowar (turns) 12180 | 16 178 150 . . 949 1 . . . 694 . 788 291 . . 138 1223 202 1042 1132 913 1239 1240 1052 439 493 Optics 5379 | . . . . . . . . . . . . . . . . . . . . 67 913 1239 1240 988 439 493 Sensors 7628 | . . . . . . . . . . 582 . 755 291 . . 138 1085 202 1042 1063 796 1096 545 . 33 . Seismic 1399 | 16 178 150 . . 949 1 . . . . . . . . . . . . . . . . . . . 105 T.N.C. 77 | . . . . . . . . . . . . . . . . . . . . . . . . 77 . . Cloaking 2 | . . . . . . . . . . . . . . . . . . . . 2 . . . . . . Jamming 744 | . . . . . . . . . . 112 . 137 . . . . 495 . . . . . . . . . ECM 2 | . . . . . . . . . . . . . . . . . . . . . . 2 . . . . Robot Analysis Total 1 | . . . . . . . . . . . . . . . . . 1 . . . . . . . . . Derelict Logs Recovered 5 | . . . . 1 . . 2 . 1 . . . . . . . . 1 . . . . . . . . Drone Launches 4 | . . . . . . . . . . . . 4 . . . . . . . . . . . . . . Drone Recoveries 1 | . . . . . . . . . . . . 1 . . . . . . . . . . . . . . Exploration | -11 -10 -10 -8 -8 -6 -6 -6 -6 -5 -5 -5 -5 -5 -5 -5 -5 -4 -4 -4 -4 -3 -3 -3 -2 -1 -1 ------------- Run | Yrd Mat Sub Rec Scr Fac Low Low Dat Pro Fac Gar Fac Ext Cet Arc Hub Fac Upp Upp War Pro Res Tes Res Acc Com Turns Passed 27331 | 141 178 1166 1699 2151 1397 743 951 152 554 1764 1315 1026 1138 650 471 581 1776 630 1272 1395 913 1239 1240 1277 439 1073 Spaces Moved 13972 | 85 89 679 748 1123 595 427 563 92 327 718 493 506 528 282 198 262 681 337 645 698 496 648 404 664 550 1134 Core 9 | 6 . . . . . . . . . . . . . . . . . . . . . . . 2 . 1 Treads 9975 | 4 8 679 561 . 331 427 563 92 327 675 477 506 528 282 198 262 681 337 645 698 496 648 404 146 . . Legs 157 | 75 81 . . . . . . . . . . . . . . . . . . . . . . 1 . . Wheels 1633 | . . . 187 1123 264 . . . . 43 16 . . . . . . . . . . . . . . . Hover 2153 | . . . . . . . . . . . . . . . . . . . . . . . . 470 550 1133 Flight 45 | . . . . . . . . . . . . . . . . . . . . . . . . 45 . . Fastest Speed 20 | 50 120 160 160 175 150 160 160 160 160 160 145 162 160 160 160 160 160 166 166 166 166 166 166 20 50 43 Average Speed 153 | 116 153 160 200 188 170 160 160 160 160 171 162 162 160 160 160 160 161 166 166 166 166 166 177 154 51 53 Slowest Speed 1730 | 160 190 160 320 190 260 160 160 160 160 243 242 162 162 160 160 240 166 173 166 166 240 166 262 1730 58 116 Overloaded Moves . | . . . . . . . . . . . . . . . . . . . . . . . . . . . Propulsion Burnouts . | . . . . . . . . . . . . . . . . . . . . . . . . . . . Robots Hopped 1 | . . . . . . . . . . . . . . . . . . . . . . . . 1 . . Potential Cave-ins 9 | . . . . . . . . . . . . . . . . . . . . . . . . 2 . 7 Cave-ins Triggered 2 | . . . . . . . . . . 1 . . . . . . . . . . . . . 1 . . Exploration Rate (%) 46 | 5 16 28 88 59 15 56 76 69 55 24 34 15 73 62 73 42 24 63 61 76 68 27 67 31 22 31 Regions Visited 26 Branch Regions 17 Pre-discovered Areas 4 | . 1 . . . . . . 1 . . . . . . . . . 2 . . . . . . . . Known Exits Taken 13 | . . . . . 1 . . . 1 1 . 1 1 1 1 1 1 . . . 1 1 1 . 1 . Unknown Exits Taken 12 | 1 1 1 1 1 . 1 1 1 . . . . . . . . . 1 1 1 . . . 1 . . Scrap Searched 20 | . . . . 3 . 3 3 . 2 . . . . . . . . 5 1 . 3 . . . . . Spaces Dug 219 | . 3 . . . 21 . 1 . . 23 . 12 . . . 6 31 . 23 . 8 25 16 18 16 16 Terrain Destroyed 1298 | . 3 17 2 . 90 37 4 . 2 117 24 46 33 2 4 21 99 29 40 71 32 69 223 214 85 34 Melee 84 | . . . . . 14 . . . . 13 . 12 . . . 4 12 . . . . . . 7 14 8 Projectile 346 | . 3 . 2 . 8 . 4 . 2 19 . . . 2 4 17 86 29 40 7 32 33 33 13 2 10 AOE 867 | . . 17 . . 68 37 . . . 85 24 34 33 . . . . . . 64 . 36 190 194 69 16 Terrain Rammed . | . . . . . . . . . . . . . . . . . . . . . . . . . . . Walls Destroyed . | . . . . . . . . . . . . . . . . . . . . . . . . . . . Machines Disabled . | . . . . . . . . . . . . . . . . . . . . . . . . . . . Actions | -11 -10 -10 -8 -8 -6 -6 -6 -6 -5 -5 -5 -5 -5 -5 -5 -5 -4 -4 -4 -4 -3 -3 -3 -2 -1 -1 --------- Run | Yrd Mat Sub Rec Scr Fac Low Low Dat Pro Fac Gar Fac Ext Cet Arc Hub Fac Upp Upp War Pro Res Tes Res Acc Com Total 17939 | 111 108 726 898 1155 831 469 590 97 349 1015 762 610 762 469 317 342 1108 383 809 894 551 797 824 852 662 1448 Wait 1104 | 1 . . 35 6 36 24 9 . 10 58 4 22 57 131 68 6 198 6 122 72 25 4 69 22 37 82 Move 13945 | 84 88 678 747 1122 594 426 562 91 326 718 492 505 527 281 197 261 680 336 644 697 495 647 403 661 549 1134 Hop 1 | . . . . . . . . . . . . . . . . . . . . . . . . 1 . . Pick Up 323 | 7 2 5 17 11 28 3 2 . 4 31 35 5 3 14 3 3 26 10 4 13 3 13 21 26 11 23 Fast Attach 202 | 8 . 2 6 3 11 . . 3 . 11 13 5 3 5 9 5 12 1 4 11 . 16 5 38 4 27 Attach 173 | 1 . . 3 . 15 2 . . . 19 14 3 1 4 1 . 11 6 1 5 3 4 25 15 5 35 Detach 57 | 2 . . 4 1 4 . . . . 6 5 1 . . 1 1 1 . . 2 . 3 3 10 1 12 Swap 380 | . 5 4 5 2 37 5 5 . 1 35 27 26 13 7 4 19 44 3 7 17 3 21 55 1 12 22 Drop 309 | . 2 4 5 10 33 2 2 3 4 21 36 5 7 19 9 9 22 9 7 20 3 27 10 19 7 14 Fire 1042 | 8 11 30 29 . 52 7 10 . 4 99 79 23 19 8 25 26 100 12 20 17 19 62 229 51 18 84 Melee 171 | . . . . . 21 . . . . 17 57 15 . . . 7 13 . . . . . . 8 18 15 Ram . | . . . . . . . . . . . . . . . . . . . . . . . . . . . Kick . | . . . . . . . . . . . . . . . . . . . . . . . . . . . Crush 10 | . . . . . . . . . . . . . . . . 5 1 . . . . . 4 . . . Escape Stasis . | . . . . . . . . . . . . . . . . . . . . . . . . . . . Rewire 219 | . . . 47 . . . . . . . . . 132 . . . . . . 40 . . . . . . Trap . | . . . . . . . . . . . . . . . . . . . . . . . . . . . Miscellaneous 3 | . . 3 . . . . . . . . . . . . . . . . . . . . . . . . Route ------- -11/Scrapyard -10/Materials -10/Subcaves (discovered 2 exits: *Rec / [*Scr]) -8/Recycling -8/Scraptown -6/Factory (discovered 2 exits: *Low x2) -6/Lower Caves -6/Lower Caves (discovered 2 exits: Fac / *Dat) -6/Data Miner -5/Proximity Caves -5/Factory (discovered 3 exits: [*Upp x2] / Gar) -5/Garrison -5/Factory -5/Extension (discovered 2 exits: *Fac / *Cet) -5/Cetus (discovered 2 exits: *Fac / *Arc) -5/Archives (discovered 2 exits: *Fac / *Hub) -5/Hub_04(d) (discovered 4 exits: *Fac x4) -4/Factory (discovered 4 exits: *Res / *Upp x2 / Arm) -4/Upper Caves -4/Upper Caves (discovered 2 exits: *Res / *War) -4/Warlord -3/Proximity Caves -3/Research (discovered 2 exits: *Tes x2) -3/Testing -2/Research (discovered 4 exits: *Acc x2 / Qua x2) -1/Access -1/Command History --------- Turn | Location | Event 11 | -11/Scrapyard | Discovered new exit (range 14) 142 | -11/Scrapyard | Entered Materials 143 | -10/Materials | Met a group of wandering Federalists 279 | -10/Materials | Discovered new exit (range 3) 307 | -10/Materials | Build established: Mutant 320 | -10/Materials | Entered Subcaves 321 | -10/Subcaves | Continued accompanying wandering Federalists (6) 321 | -10/Subcaves | Approached by a straggling Scientist 477 | -10/Subcaves | Discovered new exit (range 16) 503 | -10/Subcaves | Lost 5 allies 504 | -10/Subcaves | Found Prototype Energy Cannon 1384 | -10/Subcaves | Ambushed by Subdwellers from Twisted Machinery 1486 | -10/Subcaves | Entered Recycling 1816 | -8/Recycling | Scanned before Scraplab entrance 3022 | -8/Recycling | Core integrity fell below 50% 3062 | -8/Recycling | Lost 4 allies 3064 | -8/Recycling | Lost 3 parts (1p1n1w) 3169 | -8/Recycling | Entered Scraplab 3183 | -8/Recycling | Discovered new exit (range 2) 3185 | -8/Recycling | Entered Scraptown 3185 | -8/Scraptown | Accompanied by 2 allies 3185 | -8/Scraptown | System corruption cleaned by C-Scrubber 3554 | -8/Scraptown | Visited Awakened 3584 | -8/Scraptown | Visited Comm Corps 3609 | -8/Scraptown | Visited IN-MT5's Study 3708 | -8/Scraptown | Discovered new exit (range 5) 3757 | -8/Scraptown | Scanned Subdweller tech in exchange for log data 3816 | -8/Scraptown | Visited Fellowship of the Rings 3847 | -8/Scraptown | Visited CPS Storage 3904 | -8/Scraptown | Visited Red Mages 3997 | -8/Scraptown | Visited Cyclists 5336 | -8/Scraptown | Entered Factory 5336 | -6/Factory | Accompanied by 2 allies 5336 | -6/Factory | Evolved 8 slots: Propulsion x3, Utility x4, Weapon x1 5337 | -6/Factory | Identified exit to Lower Caves 5528 | -6/Factory | Attached CPS modules to Y-54 Guardian. 5558 | -6/Factory | Found Prototype Launcher 5558 | -6/Factory | Identified Rocket Array 5562 | -6/Factory | Found Rocket Array 5616 | -6/Factory | Lost 3 parts (1n2u) 6301 | -6/Factory | Build established: Scavenger-Mutant 6468 | -6/Factory | Fabricated Imp. Medium Treads? 6606 | -6/Factory | Garrison activated, responded to threat 6733 | -6/Factory | Entered Lower Caves 7149 | -6/Lower Caves | Build established: Tank 7162 | -6/Lower Caves | Discovered new exit (range 5) 7476 | -6/Lower Caves | Entered another Lower Caves area 8010 | -6/Lower Caves | Encountered a Warlord checkpoint 8027 | -6/Lower Caves | Identified exit to Factory 8312 | -6/Lower Caves | Discovered new exit (range 5) 8364 | -6/Lower Caves | Spotted B-75 Beast 8411 | -6/Lower Caves | Learned Factory garrison access intel 8427 | -6/Lower Caves | Entered Data Miner 8429 | -6/Data Miner | Discovered new exit (range 6) 8459 | -6/Data Miner | Met Data Miner 8491 | -6/Data Miner | Learned location of Section 7 (-2) 8491 | -6/Data Miner | Acquired the access code to Warlord's prototype stash 8519 | -6/Data Miner | Received God Mode back door access code from Data Miner 8579 | -6/Data Miner | Entered Proximity Caves 8585 | -5/Proximity Caves | Attracted the attention of an 0b10 checkpoint 8927 | -5/Proximity Caves | Learned Factory non-interactive machine intel 8962 | -5/Proximity Caves | Discovered exit to Factory (range 14) 9133 | -5/Proximity Caves | Entered Factory 9133 | -5/Factory | Evolved 2 slots: Propulsion x1, Utility x1 9134 | -5/Factory | Loaded intel: 206 non-interactive machine locations 9135 | -5/Factory | Loaded intel: 4 garrison access locations 9313 | -5/Factory | Discovered new exit (range 7) 9608 | -5/Factory | Garrison activated, responded to threat 9646 | -5/Factory | Lost 3 parts (2n1u) 9866 | -5/Factory | Discovered new exit (range 4) 9894 | -5/Factory | Identified Powered Cannon 9895 | -5/Factory | Attached Powered Cannon, gained temporary slot: Power 9972 | -5/Factory | Crushed by falling debris 9989 | -5/Factory | Build established: Mutant 10684 | -5/Factory | Build established: Tank 10708 | -5/Factory | Attached CPS modules to Y-64 Sentinel. 10743 | -5/Factory | Lost 3 parts (2u1w) 10897 | -5/Factory | Identified exit to Garrison 10897 | -5/Factory | Entered Garrison 11021 | -5/Garrison | Triggered checkpoint 11193 | -5/Garrison | Garrison Relay disabled 11258 | -5/Garrison | Triggered checkpoint 11261 | -5/Garrison | Triggered checkpoint 11264 | -5/Garrison | Spotted B-75 Beast 11272 | -5/Garrison | Attached CPS modules to X-77 Beamer. 11274 | -5/Garrison | Attached CPS modules to B-75 Beast. 11293 | -5/Garrison | Destroyed B-75 Beast 11321 | -5/Garrison | Lost 5 parts (2n2u1w) 11362 | -5/Garrison | System corruption reached 10% 11449 | -5/Garrison | Triggered checkpoint 11487 | -5/Garrison | Triggered checkpoint 11555 | -5/Garrison | Discovered new exit (range 8) 11761 | -5/Garrison | Build established: Scavenger-Gunner 12210 | -5/Garrison | Identified exit to Factory 12212 | -5/Garrison | Entered Factory 12512 | -5/Factory | First assault squad dispatched 12569 | -5/Factory | Build established: Scavenger-Mutant 12702 | -5/Factory | Incoming assault squad redirected 12924 | -5/Factory | Found Hvy. Reactive Plating 13099 | -5/Factory | Cargo convoy interrupted 13128 | -5/Factory | Incoming assault squad redirected 13135 | -5/Factory | Discovered new exit (range 6) 13139 | -5/Factory | Incoming assault squad redirected 13146 | -5/Factory | Incoming assault squad redirected 13236 | -5/Factory | Identified exit to Extension 13238 | -5/Factory | Entered Extension 13318 | -5/Extension | Rescued a captive Derelict 13354 | -5/Extension | Rescued a captive Derelict 13542 | -5/Extension | Build established: Scavenger-Tank 13599 | -5/Extension | Rescued a captive Derelict 13601 | -5/Extension | Rescued a captive Derelict 13631 | -5/Extension | Rescued a captive Derelict 13632 | -5/Extension | Rescued a captive Derelict 13755 | -5/Extension | Rescued a captive Derelict 13755 | -5/Extension | Spotted B-75 Beast 13781 | -5/Extension | Spotted B-75 Beast 13790 | -5/Extension | Destroyed B-75 Beast 13820 | -5/Extension | Lost 3 allies 13825 | -5/Extension | Rescued a captive Derelict 13826 | -5/Extension | Rescued a captive Derelict 13916 | -5/Extension | Rescued A7 14071 | -5/Extension | Rescued a captive Derelict 14156 | -5/Extension | Rescued a captive Derelict 14175 | -5/Extension | Rescued a captive Derelict 14321 | -5/Extension | Discovered new exit (range 10) 14322 | -5/Extension | Discovered new exit (range 6) 14332 | -5/Extension | Identified exit to Cetus 14376 | -5/Extension | Entered Cetus 14376 | -5/Cetus | Accompanied by 14 allies (A7) 14381 | -5/Cetus | Acquired a Cetus Manufacturing Module code from A7 14398 | -5/Cetus | Spotted Cetus Guard 14398 | -5/Cetus | Spotted Cetus Guard 14401 | -5/Cetus | Spotted Cetus Guard 14402 | -5/Cetus | Attached CPS modules to Cetus Guard. 14402 | -5/Cetus | Spotted Cetus Guard 14405 | -5/Cetus | Allies destroyed Cetus Guard 14411 | -5/Cetus | Allies destroyed Cetus Guard 14412 | -5/Cetus | Destroyed Cetus Guard 14417 | -5/Cetus | Allies destroyed Cetus Guard 14443 | -5/Cetus | Lost 5 allies 14539 | -5/Cetus | Started Cetus Manufacturing Module 14564 | -5/Cetus | Manufactured an Enhanced Grunt 14589 | -5/Cetus | Manufactured an Enhanced Grunt 14614 | -5/Cetus | Manufactured an Enhanced Grunt 14639 | -5/Cetus | Manufactured an Enhanced Grunt 14664 | -5/Cetus | Manufactured an Enhanced Grunt 14735 | -5/Cetus | Discovered new exit (range 16) 14763 | -5/Cetus | Spotted Cetus Guard 14763 | -5/Cetus | Spotted Cetus Guard 14767 | -5/Cetus | Destroyed Cetus Guard 14769 | -5/Cetus | Spotted Cetus Guard 14775 | -5/Cetus | Destroyed Cetus Guard 14778 | -5/Cetus | Allies destroyed Cetus Guard 14779 | -5/Cetus | Allies destroyed Cetus Guard 14787 | -5/Cetus | Discovered new exit (range 16) 14795 | -5/Cetus | Met Revision 17 14986 | -5/Cetus | Build established: Commander-Tank 15007 | -5/Cetus | Identified exit to Archives 15026 | -5/Cetus | Entered Archives 15026 | -5/Archives | Accompanied by 14 allies (A7) 15105 | -5/Archives | Lost 6 allies 15160 | -5/Archives | Discovered new exit (range 16) 15184 | -5/Archives | Discovered new exit (range 14) 15404 | -5/Archives | Build established: Scavenger-Tank 15485 | -5/Archives | Identified exit to Hub_04(d) 15497 | -5/Archives | Entered Hub_04(d) 15497 | -5/Hub_04(d) | Accompanied by 7 allies 15727 | -5/Hub_04(d) | Spotted B-75 Beast 15904 | -5/Hub_04(d) | Found Prototype Device 15904 | -5/Hub_04(d) | Identified Exp. Thermal Shield 15918 | -5/Hub_04(d) | Lost 4 allies 15976 | -5/Hub_04(d) | Identified exit to Factory 15976 | -5/Hub_04(d) | Network Hub disabled 15976 | -5/Hub_04(d) | Network Hub disabled 15990 | -5/Hub_04(d) | Network Hub disabled 15990 | -5/Hub_04(d) | Network Hub disabled 16036 | -5/Hub_04(d) | Spotted Lightning 16043 | -5/Hub_04(d) | Spotted Lightning 16043 | -5/Hub_04(d) | Spotted Lightning 16044 | -5/Hub_04(d) | Spotted Lightning 16056 | -5/Hub_04(d) | Spotted Lightning 16069 | -5/Hub_04(d) | Lost 3 allies 16076 | -5/Hub_04(d) | Spotted Lightning 16078 | -5/Hub_04(d) | Entered Factory 16078 | -4/Factory | Evolved 2 slots: Power x1, Utility x1 16340 | -4/Factory | Discovered new exit (range 12) 16434 | -4/Factory | Repaired Broken Centrium Heavy Treads 16500 | -4/Factory | Repaired Broken Adv. KE Penetrator 16541 | -4/Factory | Repaired Quantum Reactor 16575 | -4/Factory | Repaired Imp. Heavy Treads 16601 | -4/Factory | Identified exit to Research 16693 | -4/Factory | Identified exit to Upper Caves 16693 | -4/Factory | Identified exit to Armory 16703 | -4/Factory | Repaired Rocket Array? 17578 | -4/Factory | First assault squad dispatched 17604 | -4/Factory | Incoming assault squad redirected 17607 | -4/Factory | Incoming assault squad redirected 17687 | -4/Factory | Incoming assault squad redirected 17799 | -4/Factory | Spotted B-86 Titan 17854 | -4/Factory | Entered Upper Caves 17867 | -4/Upper Caves | Met a Warlord Commander 17868 | -4/Upper Caves | Learned location of Warlord (-4) 17869 | -4/Upper Caves | Warlord Commander delivered Encrypted Comm Array 17873 | -4/Upper Caves | Found Encrypted Comm Array 17885 | -4/Upper Caves | Lost 6 parts (2p2u2w) 17948 | -4/Upper Caves | Encountered a Warlord checkpoint 18165 | -4/Upper Caves | Learned location of Armory (-4) 18326 | -4/Upper Caves | Discovered new exit (range 11) 18484 | -4/Upper Caves | Entered another Upper Caves area 18485 | -4/Upper Caves | Encountered a Warlord checkpoint 18509 | -4/Upper Caves | Discovered exit to Research (range 10) 18588 | -4/Upper Caves | Build established: Scavenger-Gunner 19615 | -4/Upper Caves | Discovered new exit (range 8) 19635 | -4/Upper Caves | Build established: Scavenger-Tank 19756 | -4/Upper Caves | Entered Warlord 20138 | -4/Warlord | Opened Warlord's prototype stash 20146 | -4/Warlord | Found Prototype Device 20146 | -4/Warlord | Identified Exp. Focal Shield 20150 | -4/Warlord | Found Prototype Processor 20150 | -4/Warlord | Identified Exp. Armor Integrity Analyzer 20157 | -4/Warlord | Found Prototype Hackware 20157 | -4/Warlord | Identified System Mapper 20165 | -4/Warlord | Found Prototype Device 20165 | -4/Warlord | Identified Exp. Cloaking Device 20174 | -4/Warlord | Found Prototype Reactor 20174 | -4/Warlord | Identified Vortex Chain Reactor 20564 | -4/Warlord | Visited the Vortex Lab 20577 | -4/Warlord | Warlord's base attacked by MAIN.C 20579 | -4/Warlord | Found Prototype Energy Cannon 20579 | -4/Warlord | Identified Vortex Cannon 20584 | -4/Warlord | Found Prototype Piercing Weapon 20584 | -4/Warlord | Identified Vortex Lance 20593 | -4/Warlord | Found Vortex Cannon 20783 | -4/Warlord | Met Warlord 20843 | -4/Warlord | Spotted B-90 Cyclops 20897 | -4/Warlord | Spotted B-86 Titan 20927 | -4/Warlord | Warlord forces counterattacked 20964 | -4/Warlord | Spotted Executioner 20968 | -4/Warlord | Destroyed Executioner 20983 | -4/Warlord | Spotted Executioner 21013 | -4/Warlord | Found Quantum Capacitor 21021 | -4/Warlord | Spotted Striker 21030 | -4/Warlord | Spotted Executioner 21059 | -4/Warlord | Found Prototype Processor 21059 | -4/Warlord | Identified Exp. Targeting Computer 21067 | -4/Warlord | Destroyed 9 combat bots 21067 | -4/Warlord | Spotted Striker 21068 | -4/Warlord | Spotted Striker 21072 | -4/Warlord | Lost 3 parts (1n2u) 21096 | -4/Warlord | Destroyed Striker 21108 | -4/Warlord | Spotted B-90 Cyclops 21121 | -4/Warlord | Spotted Executioner 21128 | -4/Warlord | Spotted Striker 21134 | -4/Warlord | Discovered new exit (range 12) 21151 | -4/Warlord | Entered Proximity Caves 21154 | -3/Proximity Caves | Lost 32 allies 21154 | -3/Proximity Caves | Spotter reported a threat 21154 | -3/Proximity Caves | Spotter reported a threat 21961 | -3/Proximity Caves | Attracted the attention of an 0b10 checkpoint 22029 | -3/Proximity Caves | Discovered exit to Research (range 8) 22064 | -3/Proximity Caves | Entered Research 22064 | -3/Research | Evolved 2 slots: Utility x2 22256 | -3/Research | Identified exit to Testing 22264 | -3/Research | Revision forces began assault on 0b10 22264 | -3/Research | Found Unknown Launcher 22264 | -3/Research | Identified Fusion Bomb Launcher 22427 | -3/Research | Met up with Revision 17++ 22451 | -3/Research | Found Prototype Launcher 22451 | -3/Research | Identified Hellfire Missile Launcher 22524 | -3/Research | Build established: Scavenger-Gunner 22764 | -3/Research | Research terminal network offline 22768 | -3/Research | Found Prototype Device 22768 | -3/Research | Identified Exp. ECM Suite 22825 | -3/Research | Found Quantum Capacitor 22872 | -3/Research | Spotted Executioner 22884 | -3/Research | Spotted Striker 22897 | -3/Research | Found Prototype Launcher 22897 | -3/Research | Identified Adv. Micro-nuke Launcher 22911 | -3/Research | Found Gamma Bomb Array 23006 | -3/Research | Spotted Executioner 23006 | -3/Research | Spotted Striker 23015 | -3/Research | Spotted Striker 23018 | -3/Research | Spotted Striker 23021 | -3/Research | Destroyed Striker 23036 | -3/Research | Found Prototype Processor 23036 | -3/Research | Identified Exp. Core Analyzer 23071 | -3/Research | Lost 3 allies 23124 | -3/Research | Spotted Striker 23303 | -3/Research | Entered Testing 23357 | -3/Testing | Build established: Hacker-Tank 23427 | -3/Testing | Identified exit to Research 23489 | -3/Testing | Spotted Alpha 7 23532 | -3/Testing | Scanned by Researcher 23534 | -3/Testing | System corruption reached 10% 23546 | -3/Testing | Destroyed Alpha 7 23553 | -3/Testing | First assault squad dispatched 23568 | -3/Testing | Incoming assault squad redirected 23578 | -3/Testing | Lost 3 parts (1p2u) 23831 | -3/Testing | Incoming assault squad redirected 24202 | -3/Testing | Spotted PH-1SYCOFROFD 24245 | -3/Testing | Destroyed PH-1SYCOFROFD 24250 | -3/Testing | Spotted Striker 24279 | -3/Testing | Destroyed 12 combat bots 24283 | -3/Testing | Destroyed Striker 24299 | -3/Testing | Lost 7 parts (1p1n5u) 24324 | -3/Testing | Incoming assault squad redirected 24332 | -3/Testing | Found Portable AFG 24361 | -3/Testing | Found Launcher Loader 24445 | -3/Testing | System corruption reached 30% 24497 | -3/Testing | Lost 11 parts (2p3n3u3w) 24500 | -3/Testing | Incoming investigation squad redirected 24543 | -3/Testing | Entered Research 24543 | -2/Research | Warlord forces began assault on 0b10 24543 | -2/Research | Evolved 2 slots: Propulsion x2 24567 | -2/Research | Identified exit to Quarantine 24653 | -2/Research | Research machine network offline 24697 | -2/Research | Build established: Hacker-Mutant 24700 | -2/Research | Crushed by falling debris 24929 | -2/Research | Borebot progress halted 25008 | -2/Research | Borebot progress halted 25104 | -2/Research | Spotted Striker 25149 | -2/Research | Spotted Striker 25154 | -2/Research | Met up with Warlord 25156 | -2/Research | Lost 4 parts (3n1w) 25177 | -2/Research | Met DD-05H 25211 | -2/Research | Borebot progress halted 25290 | -2/Research | Spotted Striker 25292 | -2/Research | Spotted Striker 25293 | -2/Research | Spotted Striker 25299 | -2/Research | Spotted Striker 25305 | -2/Research | Destroyed Striker 25313 | -2/Research | Destroyed Striker 25315 | -2/Research | Released all parts (8) 25324 | -2/Research | Discovered new exit (range 5) 25344 | -2/Research | Lost 4 parts (1p1u2w) 25507 | -2/Research | Spotted Executioner 25543 | -2/Research | Warlord invited to help at Command 25543 | -2/Research | Given Cave Seal Controls access code 25552 | -2/Research | Found Exp. Melee Analysis Suite 25553 | -2/Research | Spotted Executioner 25566 | -2/Research | Found Exp. Core Analyzer 25605 | -2/Research | Warlord destroyed during the assault 25650 | -2/Research | System corruption reached 10% 25661 | -2/Research | Spotted Executioner 25687 | -2/Research | Spotted Executioner 25732 | -2/Research | Build established: Scavenger-Mutant 25763 | -2/Research | Found Exp. Core Analyzer 25774 | -2/Research | Spotted B-90 Cyclops 25807 | -2/Research | Spotted Striker 25816 | -2/Research | Discovered new exit (range 6) 25820 | -2/Research | Entered Access 25820 | -1/Access | Evolved 2 slots: Utility x2 25823 | -1/Access | Lost 5 parts (2p2u1w) 26003 | -1/Access | Identified exit to Command 26027 | -1/Access | Central database locked down 26141 | -1/Access | Destroyed 10 combat bots 26161 | -1/Access | Lost 6 parts (1p1n4u) 26259 | -1/Access | Entered Command 26272 | -1/Command | Spotted B-99 Colossus 26437 | -1/Command | Lost 4 parts (1p2u1w) 26497 | -1/Command | Lost 7 parts (1p2n3u1w) 26509 | -1/Command | First assault squad dispatched 26527 | -1/Command | Incoming assault squad redirected 26537 | -1/Command | Incoming assault squad redirected 26554 | -1/Command | Disengaged cave seal 26683 | -1/Command | Found Unknown Protection 26684 | -1/Command | Found Unknown Protection 26686 | -1/Command | Found Unknown Protection 26686 | -1/Command | Identified Adv. Powered Armor (x3) 26692 | -1/Command | Found Adv. Powered Armor 26751 | -1/Command | Spotted M Guard 26751 | -1/Command | Spotted M Guard 26751 | -1/Command | Spotted Combat Programmer 26769 | -1/Command | Spotted Combat Programmer 26778 | -1/Command | Destroyed Combat Programmer 26798 | -1/Command | System corruption reached 10% 26798 | -1/Command | Destroyed Combat Programmer 26867 | -1/Command | Lost 15 parts (3p3n5u4w) 26944 | -1/Command | Lost 3 parts (1p1u1w) 27029 | -1/Command | Lost 5 parts (2p2n1w) 27206 | -1/Command | Core integrity fell below 50% 27316 | -1/Command | 0b10 Conduit disabled 27316 | -1/Command | Met MAIN.C 27328 | -1/Command | Released all parts (7) 27330 | -1/Command | Core integrity fell below 20% 27332 | -1/Command | Destroyed by M Guard with Advanced Micro-nuke Launcher Last Messages --------------- 27324_ System corrupted: Energy discharge (-170). 27325_ Mic. Antimatter Reactor destroyed. 27326_ P-80 Master resets M Guard, system corruption cleaned. 27327_ Gamma Rifle destroyed. 27328_ Knocked back. 27328_ Antigrav Array destroyed. 27328_ Adv. Targeting Computer destroyed. 27328_ Released Med. Storage Unit. 27328_ Released Imp. Energy Well. 27328_ Released Adv. Signal Interpreter. 27328_ Released Adv. Hacking Suite. 27328_ Released Exp. Core Analyzer. 27328_ Released Adv. Targeting Computer. 27328_ Released Imp. Targeting Computer. 27328_ Dropped Enh. Quantum Rifle. 27329_ Acquired Hellfire Missile Launcher. 27331_ Knocked back. 27332_ Hellfire Missile Launcher destroyed. Map ----- +----------------------------------------------------+ | ?????????????????????????????????????????????????? | | ?????????????????????????????????????????????????? | | ?????????????????????????????????????????????????? | | ?????????????????????????????????????????????????? | | ?????????????????????????????????????????????????? | | ?????????????????????????????????????????????????? | | ?????????????????????????????????????????????????? | | ?????????????????????????????????????????????????? | | ?????????????????????????????????????????????????? | | ?????????????????????????????????????????????????? | | ?????????????????????????????????????????????????? | | ?????????????????????????????????????????????????? | | ?????????????????????????????????????????????????? | | ?????????????????????????????????????????????????? | | ?????????????????????????????????????????????????? | | ?????????????????????????????????????????????????? | | ?????????????????????????????????????????????????? | | ?????????????????????????????????????????????????? | | ?????????????????????????????????????????????????? | | ?????????????????????????????????????????????????? | | ?#########??????????????????????????????#????????? | | """ ????????????????????????????? #????????? | | " ???????????????????????????? #????????? | | " #######################???? #????????? | | " ; #???? #????????? | | " ; @ pY #???? #????????? | | ; [Yp #??? #????????? | | ################### #??? #######??# | | ????????????????????# #### #### | | ??????????????????????# ## ##### | | ????????????????????????# T# | | ??????????????????????????#+ ## | | ????????????????????????????# | | ?????????????????????????????# | | ?????????????????????????????# | | ?????????????????????????????#% | | ?????????????????????????????# | | ?????????????????????????????# ### # | | ?????????????????????????????######?# | | ???????????????????????????????????# | | ???????????????????????????????????## # ## | | ????????????????????????????????????# #########? | | ????????????????????????????????????# #????????? | | ????????????????????????????????????# #????????? | | ????????????????????????????????????# #????????? | | ????????????????????????????????????# #????????? | | ????????????????????????????????????# #????????? | | ????????????????????????????????????# ?????????? | | ????????????????????????????????????# ?????????? | | ????????????????????????????????????? ??????????? | +----------------------------------------------------+ Best States ------------- Heat Dissipation 122 Coolant Potential 100 Energy Generation 57 Energy Capacity 785 Matter Stores 300 Matter Capacity 300 Sight Range 23 Robot Scan Range 16 Terrain Scan Density 10 ECM Strength 3 Jamming Range 14 Power Amplification 30 Base Temperature (-) 200 Corruption Containment 8 Corruption Block 14 Armor Coverage 1350 Resistance: KI 40 Resistance: TH 25 Core Shielding 20 Phase Shifting 15 Evasion (%) 80 Targeting Accuracy 22 Melee Accuracy 12 Launcher Accuracy 40 Core Analysis 8 Recoil Reduction 6 Matter Filtering 50 Particle Charging 25 Kinecelleration 30 Salvage Targeting 3 Offensive Hacking 42 Defensive Hacking 12 Item Schematics ----------------- Huge Storage Unit | -10/Materials | Hacked Arm. Treads | -8/Recycling | Hacked CPS Tube | -6/Factory | Scanalyzed Rocket Array | -6/Factory | Scanalyzed Imp. Medium Treads | -6/Factory | Scanalyzed Combat Drone Bay | -6/Data Miner | Free Lgt. Regenerative Plating | -6/Data Miner | Free Cld. Nuclear Pulse Thruster | -6/Data Miner | Free Imp. Energy Well | -6/Data Miner | Free Kinetic Spear | -6/Data Miner | Free Field Propulsion Array | -6/Data Miner | Free Adv. Focal Shield | -6/Data Miner | Free Hardcell Cannon | -6/Data Miner | Free Centrium Heavy Treads | -4/Factory | Scanalyzed Prc. Matter Filter | -4/Factory | Scanalyzed Imp. Weapon Cycler | -4/Factory | Hacked Launcher Loader | -4/Factory | Hacked Adv. Kinecellerator | -3/Testing | Archive Enh. Biometal Leg | -3/Testing | Archive Adv. Energy Well | -3/Testing | Archive Adv. Matter Compressor | -3/Testing | Archive Robot Schematics ------------------ M-22 Extractor | -6/Data Miner | Free B-48 Gladiator | -6/Data Miner | Free S-27 Virus | -6/Data Miner | Free B-60 Warrior | -6/Data Miner | Free G-67 Veteran | -3/Testing | Archive Fabricated ------------ Imp. Medium Treads | x2 | -6/Factory Repaired ---------- Centrium Heavy Treads | 80% | -4/Factory | Broken Adv. KE Penetrator | 19% | -4/Factory | Broken Quantum Reactor | 28% | -4/Factory Imp. Heavy Treads | 24% | -4/Factory Rocket Array | 45% | -4/Factory Studied --------- Gatling Laser | -6/Factory | Hacked Quantum Reactor | -3/Testing | Hacked Com. HERF Cannon | -3/Testing | Hacked Cmb. Antigrav System | -1/Access | Hacked Alien Tech Used ----------------- None Achievements -------------- 404 Meet Your Maker Survival Of The Most Covered Challenges ------------ None Game ------ Seed ComponentCannonPlating Manual? 0 Play Time 10:30:14 Cumulative 257.7 hours Start 2026.01.08 @ 21:37:28 End 2026.01.10 @ 22:47:14 Sessions 6 Manual Loads 0 Difficulty Rogue Special Mode None Game No. 73 Rogue 73 Adventurer 0 Explorer 0 Win Type - Total 3 Types 2/0/0/1/0/0/0/0/0/0 Lore% 67 Gallery% 66 Achievement% 52 Wizard Run 0 Options --------- Layout 1 ASCII 0 Keyboard 0 Movement Mouse Keybinds 0 Fullscreen 1 Font 32/SmallcapsGlow Map View 50x35 Zoom Use 0% Tactical HUD 1 Map Filters NONE Filters NONE Steam 1 RUN: 0961f15c-3b90-4d4e-a502-4552e734e724